bitfinex/quotes_BTCUSD_20251205
["timestamp","ask_amount","ask_price","bid_price","bid_amount"]
[1764924348042,0.00239961,92033.0,92032.0,0.65903121]
[1764924348807,0.00039961,92033.0,92032.0,0.65803121]
[1764924349128,0.00139961,92033.0,92032.0,0.66203121]
[1764924349901,0.00139961,92033.0,92032.0,0.66103121]
[1764924350111,0.00139961,92033.0,92032.0,0.66203121]
[1764924364036,0.00139961,92033.0,92032.0,0.59950822]
[1764924365346,0.00139961,92033.0,92032.0,0.27650822]
[1764924368654,0.00139961,92033.0,92032.0,0.66203121]
[1764924391978,0.00139961,92033.0,92032.0,0.59950822]
[1764924392188,0.00104449,92033.0,92032.0,0.59950822]
[1764924392812,0.00104449,92033.0,92032.0,0.27650822]
[1764924395799,0.00104449,92033.0,92032.0,0.24389489]
[1764924400633,0.00104449,92033.0,92032.0,0.30641788]
[1764924401111,0.00104449,92033.0,92032.0,0.31727977]
[1764924401454,0.00104449,92033.0,92032.0,0.64027977]
[1764924404719,0.00104449,92033.0,92032.0,0.57775678]
[1764924404980,0.00104449,92033.0,92032.0,0.24389489]
[1764924412680,0.00104449,92033.0,92032.0,0.56689489]
[1764924412884,0.00104449,92033.0,92032.0,0.62941788]
[1764924413095,0.00104449,92033.0,92032.0,0.66202925]
[1764924413464,0.00104449,92033.0,92032.0,2.36492725]
[1764924413627,0.00104449,92033.0,92032.0,2.32283325]
[1764924414073,4.449e-05,92033.0,92032.0,2.31883325]
[1764924414273,1e-08,92033.0,92032.0,2.32583325]
[1764924414453,0.00193365,92061.0,92060.0,0.21724961]
[1764924414594,0.00193365,92061.0,92060.0,0.2659204]
[1764924415650,0.00393365,92061.0,92060.0,0.2669204]
[1764924415853,0.00193365,92061.0,92060.0,0.2659204]
[1764924416440,0.00193365,92061.0,92060.0,0.2669204]
[1764924417052,0.00593365,92061.0,92060.0,0.2679204]
[1764924417381,0.00593365,92061.0,92060.0,0.24634122]
[1764924419210,0.00593365,92061.0,92060.0,0.02909161]
[1764924419368,0.00593365,92061.0,92060.0,0.05067079]
[1764924420331,0.2231809,92061.0,92060.0,0.05067079]
[1764924420540,0.2231809,92061.0,92060.0,0.02909161]
[1764924424952,0.2479709,92061.0,92060.0,0.02909161]
[1764924425110,0.00593365,92061.0,92060.0,0.02909161]
[1764924425305,0.2231809,92061.0,92060.0,0.02909161]
[1764924425855,0.2231809,92061.0,92060.0,0.05081657]
[1764924425856,0.03072365,92061.0,92060.0,0.05081657]
[1764924426074,0.2231809,92061.0,92060.0,0.02909161]
[1764924426228,0.03072365,92061.0,92060.0,0.02909161]
[1764924426831,0.2231809,92061.0,92060.0,0.02909161]
[1764924427040,0.2479709,92061.0,92060.0,0.02909161]
[1764924427999,0.2646309,92061.0,92060.0,0.02909161]
[1764924428339,0.00593365,92061.0,92060.0,0.2679204]
[1764924428543,0.00593365,92061.0,92060.0,0.2842404]
[1764924429306,0.00593365,92061.0,92060.0,0.3070704]
[1764924430887,0.00593365,92061.0,92060.0,0.2679204]
[1764924431927,0.00593365,92061.0,92060.0,0.2842404]
[1764924432137,0.00593365,92061.0,92060.0,0.28549122]
[1764924432450,0.00593365,92061.0,92060.0,0.3070704]
[1764924433489,0.00193365,92061.0,92060.0,0.3050704]
[1764924433778,0.00193365,92061.0,92060.0,0.3070704]
[1764924434967,0.00193365,92061.0,92060.0,0.6300704]
[1764924442072,0.00193365,92061.0,92060.0,0.69259339]
[1764924443981,0.00193365,92061.0,92060.0,0.71567339]
[1764924458858,0.00193365,92061.0,92060.0,0.69409421]
[1764924459058,0.00193365,92061.0,92060.0,0.71567339]
[1764924459270,0.01204,92092.0,92091.0,0.21717648]
[1764924459464,0.03512,92100.0,92096.0,0.23874387]
[1764924459669,0.05101989,92097.0,92096.0,0.23874387]
[1764924460242,0.05101989,92097.0,92096.0,0.26583548]
[1764924461998,0.06201989,92097.0,92096.0,0.26683548]
[1764924462360,0.05101989,92097.0,92096.0,0.26583548]
[1764924462538,0.05901989,92097.0,92096.0,0.26683548]
[1764924465432,0.05901989,92097.0,92096.0,0.23974387]
[1764924466162,0.05901989,92097.0,92096.0,0.001]
[1764924466369,0.27618222,92097.0,92096.0,0.001]
[1764924466977,0.27722423,92097.0,92096.0,0.001]
[1764924473011,0.21720479,92079.0,92078.0,0.02709161]
[1764924473232,0.04847,92079.0,92078.0,0.02709161]
[1764924473508,0.26567479,92079.0,92078.0,0.02709161]
[1764924474091,0.04847,92079.0,92078.0,0.24429876]
[1764924474296,0.26567479,92079.0,92078.0,0.02709161]
[1764924475020,0.27067479,92079.0,92078.0,0.02809161]
[1764924475244,0.27067479,92079.0,92078.0,0.001]
[1764924477767,0.21721779,92074.0,92070.0,0.0108613]
[1764924477992,0.21721947,92073.0,92070.0,0.22808717]
[1764924478186,0.01633,92071.0,92070.0,0.22808717]
[1764924478710,0.04098,92071.0,92070.0,0.24966635]
[1764924478913,0.04098,92071.0,92066.0,0.21723436]
[1764924478914,0.21723202,92068.0,92064.0,0.02157918]
[1764924479116,0.0108613,92070.0,92064.0,0.02157918]
[1764924479117,0.21723782,92065.0,92064.0,0.02157918]
[1764924479319,0.21724725,92061.0,92056.0,0.02157918]
[1764924479500,0.21724725,92061.0,92056.0,0.24970086]
[1764924479501,0.23357725,92061.0,92056.0,0.24970086]
[1764924479711,0.25822725,92061.0,92056.0,0.24970086]
[1764924479894,0.25822725,92061.0,92058.0,0.01086271]
[1764924480298,0.25822725,92061.0,92057.0,0.01086283]
[1764924480512,0.04098,92061.0,92060.0,0.02809161]
[1764924481090,0.25922725,92061.0,92060.0,0.03109161]
[1764924481294,0.25822725,92061.0,92060.0,0.02709161]
[1764924481448,0.04098,92061.0,92060.0,0.02709161]
[1764924481797,0.25922725,92061.0,92060.0,0.03109161]
[1764924481927,0.25922725,92061.0,92060.0,0.004]
[1764924482528,0.25922725,92061.0,92060.0,0.005]
[1764924483249,0.26022725,92061.0,92060.0,0.008]
[1764924483455,0.26022725,92061.0,92060.0,0.007]
[1764924485886,0.21725579,92058.0,92055.0,0.01086307]
[1764924486117,0.02645,92056.0,92055.0,0.01086307]
[1764924486551,0.0511,92056.0,92055.0,0.01086307]
[1764924487105,0.0511,92056.0,92055.0,0.22912448]
[1764924487507,0.0511,92056.0,92055.0,0.22812448]
[1764924487912,0.0511,92056.0,92055.0,0.22912448]
[1764924488421,0.0531,92056.0,92055.0,0.23312448]
[1764924488616,0.0531,92056.0,92055.0,0.01586307]
[1764924488913,0.0531,92056.0,92055.0,0.23312448]
[1764924489528,0.0531,92056.0,92055.0,0.01586307]
[1764924489727,0.27035905,92056.0,92055.0,0.005]
[1764924490254,0.0531,92056.0,92055.0,0.005]
[1764924490464,0.0531,92056.0,92055.0,0.24384059]
[1764924493749,0.002,92056.0,92055.0,0.24384059]
[1764924494533,0.04089,92056.0,92055.0,0.24384059]
[1764924494693,0.04089,92056.0,92055.0,0.22226141]
[1764924495243,0.04089,92056.0,92055.0,0.24384059]
[1764924497833,0.002,92056.0,92055.0,0.25994059]
[1764924498037,0.002,92056.0,92055.0,0.67028358]
[1764924498232,0.002,92056.0,92055.0,0.64546358]
[1764924498416,0.002,92056.0,92055.0,0.67028358]
[1764924498820,0.002,92056.0,92055.0,0.66928358]
[1764924499015,0.004,92056.0,92055.0,0.67028358]
[1764924499219,0.004,92056.0,92055.0,0.67128358]
[1764924503246,0.004,92056.0,92055.0,0.64646358]
[1764924503673,0.004,92056.0,92055.0,0.67128358]
[1764924504364,0.004,92056.0,92055.0,0.6497044]
[1764924504565,0.004,92056.0,92055.0,0.67128358]
[1764924504863,0.004,92056.0,92055.0,0.63036358]
[1764924508879,0.04289,92056.0,92055.0,0.63036358]
[1764924509266,0.04289,92056.0,92055.0,0.56784059]
[1764924514508,0.004,92056.0,92055.0,0.56784059]
[1764924517518,0.004,92056.0,92055.0,0.24484059]
[1764924518035,0.04289,92056.0,92055.0,0.24484059]
[1764924518982,0.04289,92056.0,92055.0,0.24584059]
[1764924519185,0.04489,92056.0,92055.0,0.24684059]
[1764924520416,0.02186,92056.0,92055.0,0.24684059]
[1764924520833,0.04489,92056.0,92055.0,0.24684059]
[1764924527775,0.02163,92056.0,92055.0,0.24684059]
[1764924528076,0.04624,92056.0,92055.0,0.24684059]
[1764924530640,0.006,92056.0,92055.0,0.24684059]
[1764924532127,0.006,92056.0,92055.0,0.28593059]
[1764924536547,0.006,92056.0,92055.0,0.26293059]
[1764924536758,0.006,92056.0,92055.0,0.24684059]
[1764924536759,0.05833,92056.0,92055.0,0.24684059]
[1764924541486,0.01809,92056.0,92055.0,0.24684059]
[1764924542596,0.006,92056.0,92055.0,0.24684059]
[1764924542805,0.01809,92056.0,92055.0,0.24684059]
[1764924544022,0.05833,92056.0,92055.0,0.24684059]
[1764924544965,0.01809,92056.0,92055.0,0.24684059]
[1764924545171,0.006,92056.0,92055.0,0.24684059]
[1764924546563,0.006,92056.0,92055.0,0.28593059]
[1764924552862,0.04624,92056.0,92055.0,0.24684059]
[1764924555815,0.02163,92056.0,92055.0,0.24684059]
[1764924557767,0.04416,92056.0,92055.0,0.24684059]
[1764924559334,0.006,92056.0,92055.0,0.24684059]
[1764924561190,0.02243,92056.0,92055.0,0.24684059]
[1764924561396,0.04496,92056.0,92055.0,0.24684059]
[1764924562553,0.006,92056.0,92055.0,0.26344059]
[1764924562754,0.006,92056.0,92055.0,0.28755059]
[1764924566526,0.006,92056.0,92055.0,0.26344059]
[1764924568466,0.006,92056.0,92055.0,0.28755059]
[1764924568906,0.05728,92056.0,92055.0,0.24684059]
[1764924570015,0.03475,92056.0,92055.0,0.24684059]
[1764924570525,0.05728,92056.0,92055.0,0.24684059]
[1764924578506,0.006,92056.0,92055.0,0.32015753]
[1764924580111,0.006,92056.0,92055.0,0.29604753]
[1764924584871,0.006,92056.0,92055.0,0.27944753]
[1764924584872,0.05708,92056.0,92055.0,0.27944753]
[1764924594616,0.006,92056.0,92055.0,0.27944753]
[1764924594954,0.006,92056.0,92055.0,0.31991753]
[1764924600474,0.006,92056.0,92055.0,0.38244052]
[1764924600693,0.006,92056.0,92055.0,0.34197052]
[1764924601189,0.006,92056.0,92055.0,0.34597052]
[1764924601190,0.008,92056.0,92055.0,0.34597052]
[1764924601549,0.008,92056.0,92055.0,0.34697052]
[1764924601850,0.01,92056.0,92055.0,0.35097052]
[1764924604289,0.04962,92056.0,92055.0,0.35097052]
[1764924604996,0.04962,92056.0,92055.0,0.28844753]
[1764924606707,0.05062,92056.0,92055.0,0.29144753]
[1764924610472,0.011,92056.0,92055.0,0.29144753]
[1764924611995,0.05062,92056.0,92055.0,0.29144753]
[1764924616812,0.011,92056.0,92055.0,0.29144753]
[1764924617096,0.05217,92056.0,92055.0,0.29144753]
[1764924617708,0.02731,92056.0,92055.0,0.29144753]
[1764924617905,0.05217,92056.0,92055.0,0.29144753]
[1764924620620,0.011,92056.0,92055.0,0.29144753]
[1764924622320,0.05217,92056.0,92055.0,0.29144753]
[1764924626492,0.02731,92056.0,92055.0,0.29144753]
[1764924626698,0.011,92056.0,92055.0,0.33083753]
[1764924627850,0.011,92056.0,92055.0,0.30781753]
[1764924628150,0.02731,92056.0,92055.0,0.29144753]
[1764924628354,0.05217,92056.0,92055.0,0.29144753]
[1764924630970,0.05217,92056.0,92055.0,0.25884059]
[1764924634947,0.02731,92056.0,92055.0,0.25884059]
[1764924635149,0.011,92056.0,92055.0,0.25884059]
[1764924636749,0.011,92056.0,92055.0,0.33773358]
[1764924636967,0.011,92056.0,92055.0,0.36075358]
[1764924638579,0.011,92056.0,92055.0,0.68375358]
[1764924639612,0.011,92056.0,92055.0,0.66073358]
[1764924642724,0.011,92056.0,92055.0,0.68375358]
[1764924645552,0.011,92056.0,92055.0,0.64436358]
[1764924658519,0.011,92056.0,92055.0,0.68411358]
[1764924660769,0.011,92056.0,92055.0,0.64436358]
[1764924661250,0.05127,92056.0,92055.0,0.25884059]
[1764924668561,0.05127,92056.0,92055.0,0.23726141]
[1764924668771,0.05127,92056.0,92055.0,0.25884059]
[1764924674607,0.011,92056.0,92055.0,0.25884059]
[1764924675661,0.05039,92056.0,92055.0,0.25884059]
[1764924680753,0.011,92056.0,92055.0,0.25884059]
[1764924681788,0.011,92056.0,92055.0,0.32136358]
[1764924682256,0.011,92056.0,92055.0,0.6227844]
[1764924682461,0.011,92056.0,92055.0,0.64436358]
[1764924686239,0.011,92056.0,92055.0,0.65986358]
[1764924686397,1e-08,92056.0,92055.0,1.26860943]
[1764924686607,1e-08,92056.0,92055.0,1.21587258]
[1764924686806,1e-08,92056.0,92055.0,1.21687258]
[1764924687302,1e-08,92056.0,92055.0,1.22487258]
[1764924687509,1e-08,92056.0,92055.0,1.07667258]
[1764924687846,1e-08,92056.0,92055.0,1.08667258]
[1764924691581,0.0002,92110.0,92107.0,0.23871794]
[1764924691759,0.02657,92108.0,92107.0,0.23871794]
[1764924691961,0.05089,92108.0,92107.0,0.23871794]
[1764924692184,0.05189,92108.0,92107.0,0.23871794]
[1764924692363,0.06089,92108.0,92107.0,0.24071794]
[1764924693469,0.06089,92108.0,92107.0,0.21913876]
[1764924694057,0.06089,92108.0,92107.0,0.24071794]
[1764924695890,0.06089,92108.0,92107.0,0.21913876]
[1764924696186,0.06089,92108.0,92107.0,0.002]
[1764924696398,0.2780264,92108.0,92107.0,0.002]
[1764924696697,0.06089,92108.0,92107.0,0.002]
[1764924697055,0.06089,92108.0,92107.0,0.21913876]
[1764924697494,0.2780264,92108.0,92107.0,0.002]
[1764924697809,0.06089,92108.0,92107.0,0.002]
[1764924698125,0.06089,92108.0,92107.0,0.21913876]
[1764924699216,0.06089,92108.0,92107.0,0.002]
[1764924699807,0.06089,92108.0,92107.0,0.21913876]
[1764924700217,0.06089,92108.0,92107.0,0.002]
[1764924700417,0.06089,92108.0,92107.0,0.02357918]
[1764924700825,0.06089,92108.0,92107.0,0.24071794]
[1764924702932,0.2780264,92108.0,92107.0,0.02357918]
[1764924703236,0.2780264,92108.0,92107.0,0.002]
[1764924703381,0.06089,92108.0,92107.0,0.002]
[1764924704034,0.06089,92108.0,92107.0,0.21913876]
[1764924707372,0.03738,92108.0,92107.0,0.24071794]
[1764924707568,0.06035,92108.0,92107.0,0.24071794]
[1764924707929,0.06035,92108.0,92107.0,0.21913876]
[1764924708130,0.06035,92108.0,92107.0,0.24071794]
[1764924722709,0.01,92108.0,92107.0,0.24992794]
[1764924723290,0.01,92108.0,92107.0,0.26624794]
[1764924723692,0.01,92108.0,92107.0,0.24992794]
[1764924724105,0.01,92108.0,92107.0,0.24071794]
[1764924725927,0.03297,92108.0,92107.0,0.24071794]
[1764924726956,0.04885,92108.0,92107.0,0.24071794]
[1764924727294,0.2659864,92108.0,92107.0,0.002]
[1764924728028,0.04885,92108.0,92107.0,0.002]
[1764924728228,0.04885,92108.0,92107.0,0.21913876]
[1764924728607,0.04885,92108.0,92107.0,0.002]
[1764924728815,0.2659864,92108.0,92107.0,0.002]
[1764924733611,0.04885,92108.0,92107.0,0.002]
[1764924733790,0.2659864,92108.0,92107.0,0.002]
[1764924736669,0.04885,92108.0,92107.0,0.002]
[1764924737029,0.04885,92108.0,92107.0,0.21913876]
[1764924737397,0.04885,92108.0,92107.0,0.24071794]
[1764924737956,0.04885,92108.0,92107.0,0.21913876]
[1764924739815,0.01,92108.0,92107.0,0.24071794]
[1764924740401,0.01,92108.0,92107.0,0.21913876]
[1764924740613,0.01,92108.0,92107.0,0.24071794]
[1764924740991,0.03307,92108.0,92107.0,0.24071794]
[1764924741184,0.01,92108.0,92107.0,0.21913876]
[1764924741939,0.01,92108.0,92107.0,0.24071794]
[1764924742135,0.01,92108.0,92107.0,0.24992794]
[1764924742952,0.01,92108.0,92107.0,0.29036794]
[1764924743609,0.01,92108.0,92107.0,0.26546794]
[1764924743856,0.011,92108.0,92107.0,0.26646794]
[1764924744367,0.011,92108.0,92107.0,0.24171794]
[1764924745061,0.05049,92108.0,92107.0,0.24171794]
[1764924753300,0.011,92108.0,92107.0,0.24171794]
[1764924753719,0.011,92108.0,92107.0,0.25833794]
[1764924753882,0.011,92108.0,92107.0,0.28205794]
[1764924754091,0.011,92108.0,92107.0,0.25833794]
[1764924754286,0.011,92108.0,92107.0,0.24171794]
[1764924754676,0.011,92108.0,92107.0,0.28205794]
[1764924760910,0.011,92108.0,92107.0,0.24171794]
[1764924761796,0.011,92108.0,92107.0,0.34389093]
[1764924761912,0.011,92108.0,92107.0,0.66689093]
[1764924762117,0.011,92108.0,92107.0,0.64285093]
[1764924762317,0.011,92108.0,92107.0,0.62724093]
[1764924762553,0.011,92108.0,92107.0,0.62824093]
[1764924762917,0.011,92108.0,92107.0,0.64463093]
[1764924763126,0.011,92108.0,92107.0,0.66777093]
[1764924764091,0.012,92108.0,92107.0,0.66777093]
[1764924770138,0.012,92108.0,92107.0,0.67698093]
[1764924770674,0.012,92108.0,92107.0,0.65384093]
[1764924770868,0.012,92108.0,92107.0,0.59131794]
[1764924772221,0.012,92108.0,92107.0,0.61494794]
[1764924776342,0.012,92108.0,92107.0,0.59131794]
[1764924776780,0.012,92108.0,92107.0,0.61410794]
[1764924788711,0.05699,92108.0,92107.0,0.56571794]
[1764924790249,0.0329,92108.0,92107.0,0.56571794]
[1764924790382,0.01741,92108.0,92107.0,0.56571794]
[1764924791383,0.0415,92108.0,92107.0,0.56571794]
[1764924793121,0.01741,92108.0,92107.0,0.56571794]
[1764924798171,0.05522,92108.0,92107.0,0.56571794]
[1764924798581,0.012,92108.0,92107.0,0.60497794]
[1764924804786,0.012,92108.0,92107.0,0.56571794]
[1764924806383,0.03457,92108.0,92107.0,0.56571794]
[1764924806829,0.04981,92108.0,92107.0,0.56571794]
[1764924807767,0.02724,92108.0,92107.0,0.56571794]
[1764924807958,0.012,92108.0,92107.0,0.56571794]
[1764924808556,0.012,92108.0,92107.0,0.67671093]
[1764924819408,0.012,92108.0,92107.0,2.44783493]
[1764924819695,0.012,92108.0,92107.0,2.16757493]
[1764924820192,0.012,92108.0,92107.0,2.16957493]
[1764924820948,0.012,92108.0,92107.0,1.25131593]
[1764924821142,0.012,92108.0,92107.0,1.22224793]
[1764924821347,0.012,92108.0,92107.0,0.65557093]
[1764924821550,0.012,92108.0,92107.0,0.78473093]
[1764924822294,0.012,92108.0,92107.0,0.80787093]
[1764924823067,0.012,92108.0,92107.0,0.78473093]
[1764924823288,0.012,92108.0,92107.0,0.77428893]
[1764924823451,0.013,92108.0,92107.0,0.77428893]
[1764924823850,0.013,92108.0,92107.0,0.79742893]
[1764924824325,0.013,92108.0,92107.0,0.65557093]
[1764924826620,0.013,92108.0,92107.0,0.65607093]
[1764924829381,0.013,92108.0,92107.0,0.68008093]
[1764924836344,0.013,92108.0,92107.0,1.19527693]
[1764924837026,0.013,92108.0,92107.0,1.19727693]
[1764924841147,0.013,92108.0,92107.0,0.83352293]
[1764924841685,0.013,92108.0,92107.0,0.87364293]
[1764924842100,0.014,92108.0,92107.0,0.87364293]
[1764924845600,0.014,92108.0,92107.0,0.87564293]
[1764924854469,0.014,92108.0,92107.0,0.68357093]
[1764924857395,0.014,92108.0,92107.0,0.79559293]
[1764924857933,0.014,92108.0,92107.0,0.68357093]
[1764924858138,0.014,92108.0,92107.0,0.79559293]
[1764924863090,0.014,92108.0,92107.0,0.68357093]
[1764924863303,0.014,92108.0,92107.0,0.79600693]
[1764924863936,0.014,92108.0,92107.0,0.68357093]
[1764924864501,0.014,92108.0,92107.0,0.91715893]
[1764924864692,0.014,92108.0,92107.0,0.68357093]
[1764924864893,0.014,92108.0,92107.0,0.79585893]
[1764924865241,0.014,92108.0,92107.0,0.68357093]
[1764924869134,0.015,92108.0,92107.0,0.68357093]
[1764924869767,0.015,92108.0,92107.0,0.62104794]
[1764924869928,0.015,92108.0,92107.0,0.59634794]
[1764924870527,0.06429,92108.0,92107.0,0.57171794]
[1764924876183,0.06529,92108.0,92107.0,0.57171794]
[1764924878708,0.016,92108.0,92107.0,0.57171794]
[1764924880829,0.016,92108.0,92107.0,0.56671794]
[1764924885494,0.05617,92108.0,92107.0,0.56671794]
[1764924887157,0.05573186,92108.0,92107.0,0.56671794]
[1764924888265,0.05573186,92108.0,92107.0,0.24671794]
[1764924888420,0.27286826,92108.0,92107.0,0.008]
[1764924889068,0.27586826,92108.0,92107.0,0.009]
[1764924889564,0.28186826,92108.0,92107.0,0.01]
[1764924893197,0.02456186,92108.0,92107.0,0.03157918]
[1764924893386,0.02456186,92108.0,92107.0,0.24871794]
[1764924894692,0.02399906,92108.0,92107.0,0.26484794]
[1764924894903,0.02399906,92108.0,92107.0,0.28834794]
[1764924898768,0.02399906,92108.0,92107.0,0.24871794]
[1764924901322,0.06442906,92108.0,92107.0,0.24871794]
[1764924901832,0.06442906,92108.0,92107.0,0.22713876]
[1764924902288,0.06442906,92108.0,92107.0,0.01]
[1764924903433,0.06442906,92108.0,92107.0,0.22713876]
[1764924904000,0.06442906,92108.0,92107.0,0.24871794]
[1764924908888,0.02399906,92108.0,92107.0,0.24871794]
[1764924909693,0.02599906,92108.0,92107.0,0.24971794]
[1764924910739,0.02599906,92108.0,92107.0,0.26597794]
[1764924910943,0.02599906,92108.0,92107.0,0.29061794]
[1764924915556,0.02599906,92108.0,92107.0,0.24971794]
[1764924915758,0.06674906,92108.0,92107.0,0.24971794]
[1764924919325,0.04207906,92108.0,92107.0,0.24971794]
[1764924919525,0.06674906,92108.0,92107.0,0.24971794]
[1764924926524,0.04207906,92108.0,92107.0,0.24971794]
[1764924926727,0.02599906,92108.0,92107.0,0.24971794]
[1764924928904,0.02599906,92108.0,92107.0,0.22813876]
[1764924930210,0.02599906,92108.0,92107.0,0.24316876]
[1764924930410,0.02599906,92108.0,92107.0,0.26688876]
[1764924930711,0.06587906,92108.0,92107.0,0.22813876]
[1764924935600,0.04174906,92108.0,92107.0,0.22813876]
[1764924936679,0.06587906,92108.0,92107.0,0.22813876]
[1764924942626,0.02599906,92108.0,92107.0,0.22813876]
[1764924942810,0.02599906,92108.0,92107.0,0.27609876]
[1764924943025,0.02599906,92108.0,92107.0,0.25237876]
[1764924945591,0.04161906,92108.0,92107.0,0.22813876]
[1764924945956,0.06454906,92108.0,92107.0,0.22813876]
[1764924950227,0.02599906,92108.0,92107.0,0.29066175]
[1764924950432,0.02599906,92108.0,92107.0,0.62954175]
[1764924951024,0.02599906,92108.0,92107.0,0.65430175]
[1764924951242,0.02799906,92108.0,92107.0,0.65530175]
[1764924952930,0.02799906,92108.0,92107.0,0.67688093]
[1764924953664,0.02899906,92108.0,92107.0,0.67988093]
[1764924954234,0.02899906,92108.0,92107.0,0.65830175]
[1764924954630,0.02899906,92108.0,92107.0,0.67988093]
[1764924955231,0.02899906,92108.0,92107.0,0.65830175]
[1764924956446,0.02899906,92108.0,92107.0,0.67988093]
[1764924956855,0.02899906,92108.0,92107.0,0.65830175]
[1764924957639,0.02899906,92108.0,92107.0,0.67988093]
[1764924957798,0.02899906,92108.0,92107.0,0.65830175]
[1764924958702,0.02899906,92108.0,92107.0,0.67988093]
[1764924959085,0.02899906,92108.0,92107.0,0.65830175]
[1764924959310,0.02899906,92108.0,92107.0,0.67988093]
[1764924959972,0.02899906,92108.0,92107.0,0.65830175]
[1764924961638,0.02899906,92108.0,92107.0,0.67988093]
[1764924962642,0.02899906,92108.0,92107.0,0.65830175]
[1764924962863,0.02899906,92108.0,92107.0,0.90717575]
[1764924964237,0.02899906,92108.0,92107.0,0.92875493]
[1764924964413,0.02899906,92108.0,92107.0,0.90717575]
[1764924965023,0.02899906,92108.0,92107.0,0.92875493]
[1764924965435,0.02899906,92108.0,92107.0,0.90717575]
[1764924965835,0.02899906,92108.0,92107.0,0.92875493]
[1764924966614,0.02899906,92108.0,92107.0,0.90717575]
[1764924966815,0.02899906,92108.0,92107.0,0.92875493]
[1764924967798,0.02999906,92108.0,92107.0,0.93175493]
[1764924968311,0.03099906,92108.0,92107.0,0.93875493]
[1764924969999,0.0002,92110.0,92109.0,2.60265703]
[1764924970151,0.0002,92110.0,92109.0,2.64025621]
[1764924970355,0.0002,92110.0,92109.0,2.66332621]
[1764924970754,0.0012,92110.0,92109.0,2.66932621]
[1764924974814,0.0002,92140.0,92119.0,1.82532164]
[1764924975001,0.0002,92140.0,92119.0,1.86826325]
[1764924975320,0.0002,92140.0,92119.0,1.89161325]
[1764924975909,0.0002,92140.0,92119.0,1.89361325]
[1764924978421,0.0002,92140.0,92119.0,1.87203407]
[1764924978807,0.0002,92140.0,92119.0,1.86253925]
[1764924980809,0.0002,92140.0,92119.0,1.81802825]
[1764924983563,0.0002,92140.0,92119.0,1.79644907]
[1764924983882,0.0002,92140.0,92119.0,1.81802825]
[1764924984880,0.0002,92140.0,92129.0,0.6026099]
[1764924985069,0.0002,92140.0,92129.0,2.4221899]
[1764924985268,0.0002,92140.0,92129.0,1.7096669]
[1764924986364,0.0002,92140.0,92129.0,1.6575499]
[1764924986985,0.0002,92140.0,92129.0,1.0790939]
[1764924988638,0.0002,92140.0,92129.0,1.10067308]
[1764924989527,0.0002,92140.0,92129.0,1.0790939]
[1764924989918,0.0002,92140.0,92129.0,1.10067308]
[1764924990826,0.0002,92140.0,92129.0,1.0790939]
[1764924991042,0.0002,92140.0,92129.0,1.10067308]
[1764924991411,0.0002,92140.0,92129.0,1.0790939]
[1764924991641,0.0002,92140.0,92129.0,1.10067308]
[1764924991846,0.0002,92140.0,92129.0,1.0790939]
[1764924992260,0.0002,92140.0,92129.0,1.10067308]
[1764924992426,0.0002,92140.0,92129.0,1.0790939]
[1764924992622,0.0002,92140.0,92129.0,1.10067308]
[1764924993157,0.0002,92140.0,92129.0,1.0790939]
[1764924993534,0.0002,92140.0,92129.0,1.10067308]
[1764924995585,0.0002,92140.0,92129.0,1.0790939]
[1764924995790,0.0002,92140.0,92129.0,1.10067308]
[1764924998039,0.0002,92140.0,92129.0,1.0790939]
[1764924998485,0.0002,92140.0,92129.0,1.10067308]
[1764924999800,0.0002,92140.0,92129.0,1.0790939]
[1764925002246,0.0002,92140.0,92129.0,1.10067308]
[1764925004441,0.0002,92140.0,92129.0,1.0790939]
[1764925005846,0.0002,92140.0,92129.0,1.10067308]
[1764925006563,0.0002,92140.0,92129.0,1.0790939]
[1764925006786,0.0002,92140.0,92129.0,1.10067308]
[1764925008789,0.0002,92140.0,92129.0,1.0790939]
[1764925008970,0.0002,92140.0,92129.0,1.10067308]
[1764925013265,0.0002,92140.0,92129.0,1.0790939]
[1764925013862,0.0002,92140.0,92129.0,1.10067308]
[1764925014975,0.0002,92140.0,92129.0,1.0790939]
[1764925015519,0.0002,92140.0,92129.0,1.10067308]
[1764925016216,0.0002,92140.0,92129.0,1.0790939]
[1764925016366,0.0002,92140.0,92129.0,1.10067308]
[1764925018314,0.0002,92140.0,92129.0,1.11267308]
[1764925021248,0.0002,92140.0,92129.0,1.0910939]
[1764925021670,0.0002,92140.0,92129.0,1.11267308]
[1764925021890,0.0002,92140.0,92129.0,1.0910939]
[1764925022258,0.0002,92140.0,92129.0,1.1010939]
[1764925022458,0.0002,92140.0,92129.0,1.12267308]
[1764925023758,0.0002,92140.0,92129.0,1.1010939]
[1764925024574,0.0002,92140.0,92129.0,1.12267308]
[1764925024767,0.0002,92140.0,92129.0,1.1010939]
[1764925025694,0.0002,92140.0,92129.0,1.12267308]
[1764925026862,0.0002,92140.0,92129.0,1.1010939]
[1764925027061,0.0002,92140.0,92129.0,1.12267308]
[1764925027261,0.0002,92140.0,92129.0,1.1010939]
[1764925027464,0.0002,92140.0,92129.0,1.12267308]
[1764925027860,0.0002,92140.0,92129.0,0.7906769]
[1764925028076,0.00859,92137.0,92129.0,0.7516369]
[1764925030366,0.03972,92130.0,92129.0,0.3016099]
[1764925030843,0.03972,92130.0,92129.0,0.6246099]
[1764925031191,0.01549,92130.0,92129.0,0.6246099]
[1764925031433,0.01549,92130.0,92129.0,0.6296099]
[1764925031691,0.0002,92130.0,92129.0,0.6296099]
[1764925032347,0.0002,92130.0,92129.0,0.6336099]
[1764925034275,0.04049,92130.0,92129.0,0.6336099]
[1764925035973,0.0002,92130.0,92129.0,0.6336099]
[1764925038592,0.0002,92130.0,92129.0,0.6491399]
[1764925038920,0.0002,92130.0,92129.0,0.6721599]
[1764925045181,0.0002,92130.0,92129.0,0.3106099]
[1764925045539,0.0002,92130.0,92129.0,0.57108691]
[1764925045742,0.0002,92130.0,92129.0,0.24808691]
[1764925046123,0.0002,92130.0,92129.0,0.57108691]
[1764925048798,0.01609,92130.0,92129.0,0.57108691]
[1764925048972,0.04099,92130.0,92129.0,0.57108691]
[1764925054670,0.0002,92130.0,92129.0,0.57108691]
[1764925069142,0.0002,92130.0,92129.0,0.6493699]
[1764925069276,0.0002,92130.0,92129.0,0.6727899]